bitfinex/quotes_ETHUSD_20250323
["timestamp","ask_amount","ask_price","bid_price","bid_amount"]
[1742769489399,1.5507,1996.1,1995.6,5.843534]
[1742769489603,1.5507,1996.1,1995.6,10.854464]
[1742769489795,0.25142195,1996.0,1995.7,1.0854464]
[1742769493409,0.25142195,1996.0,1995.8,1.60029937]
[1742769493609,0.25142195,1996.0,1995.9,6.56047]
[1742769493812,1.5507,1996.6,1996.0,6.56001]
[1742769494007,1.5507,1996.6,1996.1,4.719]
[1742769494212,0.253785,1996.5,1996.2,0.4719]
[1742769494832,0.253785,1996.5,1996.1,4.719]
[1742769495172,0.253785,1996.5,1995.8,5.01048]
[1742769495379,0.253785,1996.5,1995.9,4.719]
[1742769495380,1.5507,1996.4,1995.9,4.719]
[1742769495779,1.5507,1996.2,1995.9,4.719]
[1742769496214,0.25373156,1996.1,1995.9,4.719]
[1742769497480,0.25373156,1996.1,1995.9,5.1909]
[1742769498110,1.5507,1996.2,1995.9,5.1909]
[1742769498314,1.5507,1996.2,1995.9,4.719]
[1742769499633,0.25377368,1996.1,1995.9,4.719]
[1742769507145,1.5945,1996.0,1995.5,5.01111]
[1742769507446,1.5945,1996.0,1995.6,4.719]
[1742769507605,0.25353929,1995.9,1995.4,6.5743]
[1742769507811,0.25353929,1995.9,1995.4,6.93933]
[1742769509107,0.25353929,1995.9,1995.4,11.95081]
[1742769510103,0.25353929,1995.9,1995.4,2.22033]
[1742769510345,0.25353929,1995.9,1995.4,11.95081]
[1742769510647,0.25353929,1995.9,1995.5,0.63959259]
[1742769515064,0.25353929,1995.9,1995.7,1.6264]
[1742769515270,1.5825,1996.2,1995.7,1.6264]
[1742769515469,0.25283414,1996.1,1995.8,4.719]
[1742769515776,0.25283414,1996.1,1995.8,9.72947]
[1742769515930,0.25283414,1996.1,1995.8,11.366124]
[1742769518265,0.25283414,1996.1,1995.8,6.355654]
[1742769518439,0.38064468,1996.3,1996.0,6.63642]
[1742769518648,0.25347252,1996.2,1996.0,6.63642]
[1742769518970,1.5825,1996.4,1996.0,6.63642]
[1742769519172,1.5825,1996.4,1995.9,5.01002]
[1742769519173,1.5825,1996.4,1995.8,9.72945]
[1742769519367,0.25377912,1996.3,1995.8,4.719]
[1742769519874,1.5825,1996.2,1995.9,4.719]
[1742769520083,0.25337642,1996.1,1995.9,4.719]
[1742769524781,1.5825,1996.0,1995.5,6.63767]
[1742769524966,1.83569732,1996.0,1995.6,4.718]
[1742769525645,1.5825,1996.0,1995.6,4.718]
[1742769525851,0.25305854,1995.9,1995.6,4.718]
[1742769527478,0.25305854,1995.9,1995.6,6.3444]
[1742769527661,1.5825,1996.0,1995.6,6.8162]
[1742769527855,0.25293269,1995.9,1995.6,11.82715]
[1742769528178,1.5825,1996.2,1995.6,6.8162]
[1742769528381,1.5825,1996.2,1995.6,6.3444]
[1742769528580,0.25346192,1996.1,1995.6,6.3444]
[1742769529781,0.25346192,1996.1,1995.6,11.35541]
[1742769532286,0.25346192,1996.1,1995.6,6.3444]
[1742769532986,0.25346192,1996.1,1995.6,11.35541]
[1742769533195,0.25346192,1996.1,1995.6,12.992062]
[1742769533584,0.25346192,1996.1,1995.6,12.991922]
[1742769533887,0.25346192,1996.1,1995.7,5.01066]
[1742769537000,0.25346192,1996.1,1995.7,5.01059]
[1742769537574,0.25346192,1996.1,1995.8,5.0105]
[1742769538860,0.25346192,1996.1,1995.8,6.012609]
[1742769541006,0.25346192,1996.1,1995.8,1.002109]
[1742769541192,0.25346192,1996.1,1995.7,5.01059]
[1742769541703,0.25346192,1996.1,1995.7,10.02119]
[1742769542075,0.25346192,1996.1,1995.7,5.01059]
[1742769543306,0.25346192,1996.1,1995.7,10.02118]
[1742769545721,0.25346192,1996.1,1995.8,5.01045]
[1742769545928,0.25346192,1996.1,1995.8,6.012554]
[1742769546424,0.25346192,1996.1,1995.8,1.002104]
[1742769546629,0.25346192,1996.1,1995.8,6.012504]
[1742769546827,0.25346192,1996.1,1995.8,1.002104]
[1742769546991,0.25346192,1996.1,1995.7,10.02119]
[1742769547186,0.25346192,1996.1,1995.7,5.01053]
[1742769548908,1.6606,1996.0,1995.7,5.01053]
[1742769549226,0.25216565,1995.9,1995.7,5.01053]
[1742769549838,0.25216565,1995.9,1995.7,6.66513]
[1742769550002,0.25216565,1995.9,1995.8,5.677033]
[1742769550198,1.6606,1996.2,1995.8,5.677033]
[1742769550415,0.25221809,1996.1,1995.8,5.677033]
[1742769552006,0.25221809,1996.1,1995.8,0.666513]
[1742769552316,0.25221809,1996.1,1995.7,5.01053]
[1742769553117,0.25221809,1996.1,1995.7,10.02113]
[1742769553615,0.25221809,1996.1,1995.9,5.01009]
[1742769553819,0.25221809,1996.1,1996.0,9.72702]
[1742769554134,1.6606,1996.4,1996.0,9.72702]
[1742769554306,0.25320691,1996.3,1996.0,9.72702]
[1742769554635,1.6606,1996.4,1996.0,9.72702]
[1742769554794,0.25302662,1996.2,1996.0,9.72702]
[1742769554992,1.6606,1996.4,1996.0,11.200731]
[1742769555193,0.25320691,1996.3,1996.0,11.200731]
[1742769555390,1.6606,1996.4,1996.0,6.190711]
[1742769555595,0.25320691,1996.3,1996.0,4.717]
[1742769555833,1.6606,1996.4,1996.0,4.717]
[1742769555998,0.25349132,1996.2,1996.0,4.717]
[1742769556198,0.37148927,1996.3,1996.0,4.717]
[1742769556403,1.91463974,1996.2,1996.0,4.717]
[1742769557611,1.91463974,1996.2,1995.1,0.38476645]
[1742769557612,1.91463974,1996.2,1995.5,10.02234]
[1742769557795,1.91463974,1996.2,1995.5,5.01109]
[1742769557994,4.5661,1996.1,1995.6,4.717]
[1742769558209,1.5661,1995.9,1995.6,4.717]
[1742769558441,0.25261399,1995.8,1995.6,4.717]
[1742769558832,1.5661,1995.9,1995.6,4.717]
[1742769559037,0.25243361,1995.7,1995.6,4.717]
[1742769559529,1.95158937,1995.9,1995.6,4.717]
[1742769559733,0.25261399,1995.8,1995.6,4.717]
[1742769559925,1.95158937,1995.9,1995.6,4.717]
[1742769560130,0.25261399,1995.8,1995.6,4.717]
[1742769560333,1.95158937,1995.9,1995.6,4.717]
[1742769560536,0.25261399,1995.8,1995.6,4.717]
[1742769560733,1.95158937,1995.9,1995.6,4.717]
[1742769560936,0.25261399,1995.8,1995.6,4.717]
[1742769561113,1.95158937,1995.9,1995.6,4.717]
[1742769561445,0.25261399,1995.8,1995.6,4.717]
[1742769561745,1.95158937,1995.9,1995.6,4.717]
[1742769561948,0.25261399,1995.8,1995.6,4.717]
[1742769562152,1.95158937,1995.9,1995.6,4.717]
[1742769562475,0.25261399,1995.8,1995.6,4.717]
[1742769562806,1.95158937,1995.9,1995.6,4.717]
[1742769563009,0.25261399,1995.8,1995.6,4.717]
[1742769563242,1.95158937,1995.9,1995.6,4.717]
[1742769563447,0.25264416,1995.7,1995.6,4.717]
[1742769563647,1.95158937,1995.9,1995.6,4.717]
[1742769563849,1.95158937,1995.9,1995.5,5.01127]
[1742769564151,0.25286663,1995.8,1995.5,4.717]
[1742769564321,1.95158937,1995.9,1995.5,4.717]
[1742769564522,0.25286663,1995.8,1995.5,4.717]
[1742769564834,1.95158937,1995.9,1995.5,4.717]
[1742769565015,0.25268626,1995.7,1995.5,4.717]
[1742769565213,1.95158937,1995.9,1995.5,4.717]
[1742769565446,0.25286663,1995.8,1995.5,4.717]
[1742769565812,1.95158937,1995.9,1995.5,4.717]
[1742769566004,0.25286663,1995.8,1995.5,4.717]
[1742769566219,1.95158937,1995.9,1995.5,4.717]
[1742769566418,0.25268626,1995.7,1995.5,4.717]
[1742769566641,1.95158937,1995.9,1995.5,4.717]
[1742769567051,0.25290873,1995.8,1995.5,4.717]
[1742769567471,1.95158937,1995.9,1995.5,4.717]
[1742769567640,0.25272837,1995.7,1995.5,4.717]
[1742769567839,1.95158937,1995.9,1995.5,4.717]
[1742769568161,0.25290873,1995.8,1995.5,4.717]
[1742769568459,1.95158937,1995.9,1995.5,4.717]
[1742769568661,0.25272837,1995.7,1995.5,4.717]
[1742769568865,1.95158937,1995.9,1995.5,4.717]
[1742769569241,0.25290873,1995.8,1995.5,9.72826]
[1742769569631,1.95158937,1995.9,1995.5,9.72826]
[1742769570160,0.25295083,1995.8,1995.5,9.72826]
[1742769570336,1.95158937,1995.9,1995.5,9.72826]
[1742769570669,0.25290873,1995.8,1995.5,9.72826]
[1742769571036,1.95158937,1995.9,1995.5,9.72812]
[1742769571243,1.5946,1996.2,1995.7,1.5461]
[1742769571543,1.5946,1996.2,1995.7,6.55687]
[1742769571741,0.25353391,1996.1,1995.7,6.55687]
[1742769571945,0.25353391,1996.1,1995.8,5.0104]
[1742769572130,0.25353391,1996.1,1995.9,4.717]
[1742769572331,1.5946,1996.4,1995.9,4.717]
[1742769572531,0.25282797,1996.3,1995.9,4.717]
[1742769572833,1.5946,1996.4,1995.9,4.717]
[1742769573032,0.25268979,1996.2,1995.9,4.717]
[1742769573233,0.38133421,1996.2,1995.9,4.717]
[1742769573433,0.2517533,1996.1,1995.9,4.717]
[1742769573884,1.5946,1996.4,1995.9,4.717]
[1742769574084,0.25157295,1996.0,1995.9,4.717]
[1742769574686,1.5946,1996.4,1995.9,4.717]
[1742769574859,0.25157295,1996.0,1995.9,4.717]
[1742769575187,1.86027295,1996.0,1995.9,4.717]
[1742769575388,1.86027295,1996.0,1995.8,4.717]
[1742769577183,1.86027295,1996.0,1995.4,1.6358]
[1742769577502,1.86027295,1996.0,1995.5,4.717]
[1742769578486,1.86027295,1996.0,1995.5,6.242]
[1742769578660,1.86027295,1996.0,1995.5,7.868484]
[1742769579253,1.86027295,1996.0,1995.5,6.242]
[1742769581726,1.86027295,1996.0,1995.5,11.25327]
[1742769583609,1.86027295,1996.0,1995.5,6.242]
[1742769588211,1.86027295,1996.0,1995.4,5.01132]
[1742769588413,1.86027295,1996.0,1995.5,4.717]
[1742769589273,1.86027295,1996.0,1995.5,5.689832]
[1742769591617,1.86027295,1996.0,1995.5,4.717]
[1742769604547,1.86027295,1996.0,1995.5,9.72808]
[1742769604925,1.86027295,1996.0,1995.5,4.717]
[1742769607737,1.5259,1995.8,1995.4,4.716]
[1742769607940,0.24517369,1995.7,1995.4,4.716]
[1742769608248,1.5259,1995.6,1995.4,4.716]
[1742769608548,1.770497,1995.6,1995.4,4.716]
[1742769608947,1.770497,1995.6,1995.3,4.716]
[1742769609144,1.770497,1995.6,1995.1,0.01]
[1742769609658,3.0,1995.5,1995.1,0.01]
[1742769609823,1.5259,1995.4,1995.1,0.01]
[1742769610164,1.76825527,1995.4,1995.1,0.01]
[1742769610653,3.24235527,1995.4,1995.1,0.01]
[1742769610853,3.0,1995.3,1995.1,0.01]
[1742769611059,1.5259,1995.2,1995.1,0.01]
[1742769611219,1.76797823,1995.2,1995.1,0.01]
[1742769613369,0.24207823,1995.2,1995.1,0.01]
[1742769613594,1.5259,1995.4,1995.1,0.01]
[1742769613881,0.24084872,1995.3,1995.1,0.01]
[1742769615530,1.5259,1995.2,1995.1,0.01]
[1742769615848,1.76656815,1995.2,1995.1,0.01]
[1742769616226,2.15117483,1995.2,1995.1,0.01]
[1742769616829,0.62527483,1995.2,1995.1,0.01]
[1742769617639,2.15117483,1995.2,1995.1,0.01]
[1742769617839,2.14515511,1995.2,1995.1,0.01]
[1742769626256,10.71231239,1995.2,1995.1,0.01]
[1742769626460,15.42931239,1995.2,1995.1,0.01]
[1742769626664,9.67228,1995.1,1995.0,0.1]
[1742769627078,9.90960408,1995.1,1995.0,0.1]
[1742769630109,1.66,1994.8,1994.2,6.3164]
[1742769630293,1.66,1994.8,1994.2,7.449499]
[1742769630495,0.23651715,1994.7,1994.2,7.449499]
[1742769631397,0.36608574,1994.7,1994.2,7.449499]
[1742769632292,0.36608574,1994.7,1994.2,12.464019]
[1742769634509,0.36608574,1994.7,1994.2,7.449499]
[1742769634995,0.36608574,1994.7,1994.2,12.463989]
[1742769635876,1.5766,1994.6,1994.2,5.850099]
[1742769636197,0.36293027,1994.5,1994.2,4.717]
[1742769638311,0.36293027,1994.5,1994.0,6.67233]
[1742769638479,1.5766,1994.4,1993.6,1.6673]
[1742769638685,3.0,1994.0,1993.6,0.01]
[1742769639009,1.5766,1993.7,1993.6,0.01]
[1742769639307,10.14239,1993.7,1993.6,0.01]
[1742769639513,26.49481996,1993.7,1993.6,0.01]
[1742769639677,5.31187896,1993.7,1993.6,0.01]
[1742769641010,10.02987896,1993.7,1993.6,0.01]
[1742769642405,15.04566896,1993.7,1993.6,0.01]
[1742769642602,10.02987896,1993.7,1993.6,0.01]
[1742769642768,5.31187896,1993.7,1993.6,0.01]
[1742769647679,4.5766,1993.6,1993.0,0.1176246]
[1742769647880,1.5766,1993.2,1993.0,0.1176246]
[1742769648276,0.3538199,1993.1,1993.0,0.1176246]
[1742769649120,0.72269893,1993.1,1993.0,0.1176246]
[1742769649613,3.72269893,1993.1,1993.0,0.1176246]
[1742769650418,0.72269893,1993.1,1993.0,0.1176246]
[1742769651186,3.72269893,1993.1,1993.0,0.1176246]
[1742769651869,8.73999893,1993.1,1993.0,0.1176246]
[1742769652511,13.45999893,1993.1,1993.0,0.1176246]
[1742769652805,8.44269893,1993.1,1993.0,0.1176246]
[1742769653013,0.72269893,1993.1,1993.0,0.1176246]
[1742769658394,3.0,1993.0,1992.4,1.6087]
[1742769658630,0.3484378,1992.9,1992.4,1.6087]
[1742769658835,0.3484378,1992.9,1992.4,6.62777]
[1742769659237,0.3484378,1992.9,1992.5,5.0187]
[1742769659432,1.95767903,1993.1,1992.5,5.0187]
[1742769659625,0.3485817,1993.0,1992.5,5.0187]
[1742769660216,0.3485817,1993.0,1992.4,6.62759]
[1742769660416,0.3485817,1993.0,1992.5,5.01878]
[1742769660825,0.3485817,1993.0,1992.6,5.01845]
[1742769661038,0.3485817,1993.0,1992.7,1.6087]
[1742769661537,0.3485817,1993.0,1992.5,1.6087]
[1742769663419,3.3485817,1993.0,1992.5,1.6087]
[1742769664247,1.5888,1992.9,1992.5,1.6087]
[1742769664747,0.34916679,1992.8,1992.5,1.6087]
[1742769665150,0.34916679,1992.8,1992.3,9.75526]
[1742769665444,3.34916679,1992.8,1992.3,6.2546]
[1742769666320,0.34916679,1992.8,1992.3,11.27373]
[1742769666515,0.34916679,1992.8,1992.4,5.01903]
[1742769668144,0.34916679,1992.8,1992.3,11.27387]
[1742769668533,3.34916679,1992.8,1992.3,6.2546]
[1742769669238,0.34916679,1992.8,1992.3,1.5206]
[1742769669443,1.5798,1992.7,1992.2,5.01943]
[1742769669645,1.5798,1992.7,1992.3,5.01921]
[1742769669852,0.34669702,1992.6,1992.3,5.01921]
[1742769671244,0.34669702,1992.6,1992.4,5.01907]
[1742769671481,0.34669702,1992.6,1992.5,5.01882]
[1742769671758,3.0,1993.0,1992.5,1.5206]
[1742769672270,0.34709768,1992.9,1992.3,9.7533]
[1742769672466,1.5798,1992.8,1992.3,11.27374]
[1742769672664,0.34683022,1992.7,1992.4,5.01906]
[1742769672858,0.34683022,1992.7,1992.3,6.2546]
[1742769673043,0.34683022,1992.7,1992.2,9.7655]
[1742769674130,1.5798,1992.6,1992.2,9.7655]
[1742769674468,0.34635912,1992.5,1992.2,9.7655]
[1742769675265,0.34635912,1992.5,1992.2,4.746]
[1742769675440,0.34635912,1992.5,1992.2,9.76552]
[1742769675763,0.34635912,1992.5,1992.2,14.78491]
[1742769676073,0.34635912,1992.5,1992.3,10.03844]
[1742769676371,1.5798,1992.8,1992.3,5.01927]
[1742769676575,0.34630646,1992.4,1992.3,5.01927]
[1742769676745,1.5798,1992.8,1992.3,5.01927]
[1742769676946,0.34622492,1992.4,1992.3,5.01927]
[1742769677159,1.5798,1992.8,1992.3,5.01927]
[1742769677362,0.34630615,1992.4,1992.3,5.01927]
[1742769677576,1.5798,1992.8,1992.3,5.01927]
[1742769678046,0.34674827,1992.7,1992.3,5.01927]
[1742769678745,0.34674827,1992.7,1992.2,9.7655]
[1742769678938,0.34674827,1992.7,1992.2,4.746]
[1742769679140,3.34674827,1992.7,1992.1,11.57006]
[1742769679572,3.34674827,1992.7,1992.1,6.55026]
[1742769679757,3.34674827,1992.7,1992.1,11.56993]
[1742769680187,3.34674827,1992.7,1992.1,6.55026]
[1742769680360,3.34674827,1992.7,1992.1,11.56992]
[1742769680564,3.34674827,1992.7,1992.1,6.55026]
[1742769680751,3.34674827,1992.7,1992.1,11.56993]
[1742769680951,3.34674827,1992.7,1992.1,6.55026]
[1742769681575,1.5923,1992.6,1992.1,6.55026]
[1742769681879,0.34635839,1992.5,1992.1,6.55026]
[1742769682946,0.34635839,1992.5,1992.2,5.01951]
[1742769683863,0.34635839,1992.5,1992.1,6.55038]
[1742769684069,0.72502048,1992.5,1992.1,6.55038]
[1742769684270,0.72502048,1992.5,1992.2,5.01947]
[1742769685288,0.72502048,1992.5,1992.1,6.55036]
[1742769685586,0.72502048,1992.5,1992.1,11.57004]
[1742769685987,0.72502048,1992.5,1992.1,6.55028]
[1742769686183,0.72502048,1992.5,1992.1,6.55025]
[1742769688180,0.72502048,1992.5,1992.2,5.01957]
[1742769688385,0.72502048,1992.5,1992.1,6.55025]
[1742769689777,0.72502048,1992.5,1992.1,0.01]
[1742769692887,0.72502048,1992.5,1992.1,5.02979]
[1742769693192,0.72502048,1992.5,1992.1,0.01]
[1742769694912,0.72502048,1992.5,1992.1,0.06019281]
[1742769695490,0.72502048,1992.5,1992.1,0.01]
[1742769697091,4.5829,1992.2,1992.1,0.01]
[1742769697415,1.9257347,1992.2,1992.1,0.01]
[1742769699875,0.3428347,1992.2,1992.1,0.01]
[1742769700074,1.6051,1992.4,1992.1,0.01]
[1742769700321,0.34325333,1992.3,1992.1,0.01]
[1742769700678,1.6051,1992.2,1992.1,0.01]
[1742769701004,1.94809738,1992.2,1992.1,0.01]
[1742769703199,0.34299738,1992.2,1992.1,0.01]
[1742769703518,1.6051,1992.4,1992.1,0.01]
[1742769703818,0.34207023,1992.3,1992.1,0.01]
[1742769712630,3.34207023,1992.3,1992.1,0.01]
[1742769713416,0.34207023,1992.3,1992.1,0.01]
[1742769714738,3.34207023,1992.3,1992.1,0.01]
[1742769715746,0.34207023,1992.3,1992.1,0.01]
[1742769720273,5.36152023,1992.3,1991.7,1.4661]
[1742769720409,1.5176,1992.2,1991.7,6.1901]
[1742769720844,0.34139425,1992.1,1991.7,6.1901]
[1742769721110,5.01983,1992.1,1991.7,1.4661]
[1742769721314,0.33978163,1992.0,1991.7,1.4661]
[1742769721620,0.37866209,1992.5,1992.1,5.01971]
[1742769721809,2.48213468,1992.7,1992.2,5.232971]
[1742769722011,2.48213468,1992.7,1992.6,5.01856]
[1742769722311,2.48213468,1992.7,1992.2,5.232971]
[1742769722312,1.39327146,1992.7,1992.2,0.501971]
[1742769722513,1.39327146,1992.7,1992.1,5.01979]
[1742769722747,1.39327146,1992.7,1992.2,4.742]
[1742769723054,5.0185,1992.7,1992.2,4.742]
[1742769723347,3.0,1992.6,1992.2,4.742]
[1742769723509,3.0,1992.4,1991.9,1.5061]
[1742769724673,3.0,1992.4,1991.7,6.2591]
[1742769724850,3.0,1992.4,1991.7,7.387118]
[1742769724851,8.01919,1992.4,1991.7,7.387118]
[1742769725050,2.14846228,1992.5,1991.9,1.6078]
[1742769725051,1.5176,1992.5,1991.9,1.6078]
[1742769725288,13.66730228,1992.8,1991.9,6.62794]
[1742769725561,8.01871,1992.6,1991.9,1.6078]
[1742769725863,5.01889,1992.5,1991.9,1.6078]
[1742769726054,1.565,1992.4,1991.9,1.6078]
[1742769726443,9.58412,1992.4,1991.9,1.6078]
[1742769727531,4.565,1992.4,1991.9,1.6078]
[1742769727732,9.58407,1992.4,1991.9,1.6078]
[1742769728133,4.565,1992.4,1991.9,1.6078]
[1742769729070,0.2608474,1992.3,1991.9,1.6078]
[1742769729535,3.0,1992.5,1991.9,1.6078]
[1742769729869,0.26114399,1992.4,1991.9,1.6078]
[1742769730083,0.26114399,1992.4,1991.9,7.290941]
[1742769730236,4.5594,1992.6,1991.9,7.290941]
[1742769730435,0.2610102,1992.3,1991.9,6.62812]
[1742769730647,4.5594,1992.6,1991.9,1.6078]
[1742769730847,0.26083567,1992.2,1991.9,1.6078]
[1742769731046,4.5594,1992.6,1991.9,1.6078]
[1742769731248,0.26062039,1992.1,1991.9,1.6078]
[1742769731448,0.37315835,1992.3,1991.9,2.270619]
[1742769731656,0.26044582,1992.0,1991.9,2.270619]
[1742769731858,4.5594,1992.6,1991.9,2.270619]
[1742769732044,0.26044582,1992.0,1991.9,1.6078]
[1742769732548,9.57799,1992.6,1991.9,1.6078]
[1742769732881,0.26131849,1992.5,1991.9,1.6078]
[1742769734882,0.64636447,1992.5,1992.0,1.5012]
[1742769735293,0.64636447,1992.5,1992.2,1.5012]
[1742769735475,0.26131849,1992.5,1992.3,5.01919]
[1742769735649,0.26131849,1992.5,1992.4,1.5012]
[1742769735970,0.2611385,1992.5,1992.4,1.5012]
[1742769736171,4.5594,1993.0,1992.4,1.5012]
[1742769736353,0.26183626,1992.9,1992.5,4.756]
[1742769739374,0.89269854,1992.9,1992.5,4.756]
[1742769739579,3.89269854,1992.9,1992.5,4.756]
[1742769739882,3.89269854,1992.9,1992.4,1.5012]
[1742769740062,0.63086228,1992.8,1992.4,1.5012]
[1742769740449,0.24089003,1992.7,1992.4,1.5012]
[1742769740852,3.0,1992.9,1992.4,1.5012]
[1742769741053,0.24071559,1992.6,1992.4,1.5012]
[1742769741247,3.0,1992.9,1992.4,1.5012]
[1742769741485,0.24054112,1992.5,1992.4,1.5012]
[1742769741686,3.0,1992.9,1992.4,1.5012]
[1742769741890,0.24054112,1992.5,1992.4,1.5012]
[1742769742068,3.0,1992.9,1992.4,1.5012]
[1742769742262,0.24054112,1992.5,1992.4,1.5012]
[1742769742463,3.0,1992.9,1992.4,1.5012]
[1742769742664,0.24054112,1992.5,1992.4,1.5012]
[1742769742888,3.0,1992.9,1992.4,1.5012]
[1742769743087,0.24054112,1992.5,1992.4,1.5012]
[1742769743289,3.0,1992.9,1992.4,1.5012]
[1742769743491,0.24054112,1992.5,1992.4,1.5012]
[1742769743667,3.0,1992.9,1992.4,1.5012]
[1742769743871,0.24054112,1992.5,1992.4,1.5012]
[1742769744068,3.0,1992.9,1992.4,1.5012]
[1742769744401,4.94429503,1993.0,1992.4,1.5012]
[1742769744693,0.24110507,1992.8,1992.4,1.5012]
[1742769744893,4.94429503,1993.0,1992.4,1.5012]
[1742769744894,0.24127948,1992.9,1992.4,1.5012]
[1742769745198,0.24110507,1992.8,1992.4,1.5012]
[1742769745398,4.94429503,1993.0,1992.4,1.5012]
[1742769745699,0.24127948,1992.9,1992.4,1.5012]
[1742769756708,0.24127948,1992.9,1992.5,1.575]
[1742769759211,0.24127948,1992.9,1992.5,7.253192]
[1742769759508,0.24127948,1992.9,1992.6,1.5834]
[1742769759808,0.24127948,1992.9,1992.8,1.5834]
[1742769764927,3.63086228,1993.3,1992.8,1.5834]
[1742769765097,0.2222661,1993.2,1992.8,1.5834]
[1742769768036,0.59132449,1993.2,1992.8,1.5834]
[1742769769547,2.17199456,1992.9,1992.8,1.5834]
[1742769769699,2.37553324,1992.9,1992.8,1.5834]
[1742769773254,0.20353868,1992.9,1992.8,2.21484]
[1742769773456,0.20353868,1992.9,1992.8,10.00006677]
[1742769773753,2.17199456,1993.5,1993.3,1.5784]
[1742769773904,2.17199456,1993.5,1993.3,6.3014]
[1742769774105,0.18784047,1993.4,1993.3,6.3014]
[1742769774308,2.35983503,1993.4,1993.3,6.93154]
[1742769774819,0.18784047,1993.4,1993.3,6.93154]
[1742769775148,0.18800315,1993.4,1993.3,6.93154]
[1742769775384,0.18800315,1993.4,1993.3,1.5784]
[1742769775504,5.0168,1993.3,1992.7,1.5784]
[1742769775709,3.48906377,1992.9,1992.7,1.5784]
[1742769775904,0.18655053,1992.8,1992.7,1.5784]
[1742769777052,0.18655053,1992.8,1992.7,2.20874]
[1742769777547,0.18622499,1992.8,1992.7,2.20874]
[1742769777714,3.48906377,1993.0,1992.7,2.20874]
[1742769777905,0.18644006,1992.9,1992.7,2.20874]
[1742769779423,0.18644006,1992.9,1992.7,1.5784]
[1742769784361,0.18644006,1992.9,1992.6,4.725]
[1742769784519,3.48906377,1992.8,1992.5,1.5812]
[1742769784718,0.18576609,1992.7,1992.5,6.3102]
[1742769785151,3.48906377,1992.8,1992.5,6.3102]
[1742769785581,3.48906377,1993.0,1992.5,11.9599]
[1742769785742,0.18615559,1992.9,1992.5,11.9599]
[1742769787784,0.18615559,1992.9,1992.6,6.58224]
[1742769788011,0.18615559,1992.9,1992.7,5.0181]
[1742769788209,0.18615559,1992.9,1992.8,1.5637]
[1742769790579,0.18615559,1992.9,1992.8,1.61387455]
[1742769790982,0.18615559,1992.9,1992.8,1.5637]
[1742769791172,0.18615559,1992.9,1992.8,2.221897]
[1742769791366,3.0,1993.1,1992.8,2.221897]
[1742769791605,0.18656997,1993.0,1992.9,4.725]
[1742769800074,3.67563374,1993.0,1992.9,4.725]
[1742769803050,0.18656997,1993.0,1992.9,4.725]
[1742769803255,0.18656997,1993.0,1992.9,5.35387]
[1742769803452,3.0,1993.1,1992.9,4.725]
[1742769803655,0.18753393,1993.0,1992.9,4.725]
[1742769804150,3.86587083,1993.2,1992.9,4.725]
[1742769804353,0.18749324,1993.0,1992.9,4.725]
[1742769804564,3.86587083,1993.2,1992.9,4.725]
[1742769804747,0.18749324,1993.0,1992.9,4.725]
[1742769805257,3.86587083,1993.2,1992.9,4.725]
[1742769805552,0.18749324,1993.0,1992.9,4.725]
[1742769805739,3.86587083,1993.2,1992.9,4.725]
[1742769805943,0.18749324,1993.0,1992.9,4.725]
[1742769806141,3.86587083,1993.2,1992.9,4.725]
[1742769806319,0.18749324,1993.0,1992.9,4.725]
[1742769806520,3.86587083,1993.2,1992.9,4.725]
[1742769806749,0.18749324,1993.0,1992.9,4.725]
[1742769806924,3.86587083,1993.2,1992.9,4.725]
[1742769807245,3.48906377,1993.0,1992.9,4.725]
[1742769807458,5.00896377,1993.0,1992.5,5.64982]
[1742769807664,5.19629423,1993.0,1992.6,5.286982]
[1742769807864,3.48906377,1992.8,1992.5,0.63102]
[1742769808019,1.70723046,1993.0,1992.4,1.5599]
[1742769808020,3.48906377,1992.6,1992.4,1.5599]
[1742769808224,0.18645836,1992.5,1992.3,4.722]
[1742769808522,3.48906377,1992.4,1992.1,4.73]
[1742769808755,3.48906377,1992.2,1991.7,4.732]
[1742769809064,0.18354508,1992.1,1991.8,0.4732]
[1742769809424,3.48906377,1992.2,1991.8,0.4732]
[1742769809624,0.18374882,1992.1,1991.7,6.2919]
[1742769809962,3.48906377,1992.0,1991.7,6.2929]
[1742769810257,0.18331807,1991.9,1991.7,6.2929]
[1742769812859,3.48906377,1991.8,1991.5,1.5599]
[1742769813065,3.48906377,1991.8,1991.5,6.2909]
[1742769813228,0.1773696,1991.7,1991.5,6.2909]
[1742769813428,0.1773696,1991.7,1991.5,4.731]
[1742769813637,3.48906377,1991.6,1991.5,4.731]
[1742769813852,3.6660549,1991.6,1991.4,4.735]
[1742769814055,3.48906377,1991.5,1991.2,4.736]
[1742769814278,3.48906377,1991.5,1991.1,1.6775246]
[1742769814279,3.48906377,1991.3,1991.1,0.1176246]
[1742769814561,4.69578671,1991.4,1991.1,0.1176246]
[1742769814727,0.17481437,1991.2,1991.1,0.1176246]
[1742769814923,5.00896377,1991.4,1991.1,0.1176246]
[1742769815152,0.17481437,1991.2,1991.1,0.1176246]
[1742769815322,5.00896377,1991.4,1991.1,0.1176246]
[1742769815745,0.17629014,1991.3,1991.1,0.1176246]
[1742769816167,0.17611541,1991.2,1991.1,0.1176246]
[1742769816376,8.00896377,1991.4,1991.1,0.1176246]
[1742769816580,3.48906377,1991.2,1991.1,0.1176246]
[1742769816755,3.66439336,1991.2,1991.1,0.1176246]
[1742769818742,4.03508808,1991.2,1991.1,0.1176246]
[1742769819446,7.03508808,1991.2,1991.1,0.1176246]
[1742769819648,7.03508808,1991.2,1990.6,0.01]
[1742769819649,1.549,1990.7,1990.6,0.01]
[1742769819847,3.0,1990.4,1990.0,1.0]
[1742769820080,16.55199754,1990.1,1990.0,1.0]
[1742769820392,16.55199754,1990.1,1988.0,28.478]